bitfinex/quotes_BTCUSD_20250719
["timestamp","ask_amount","ask_price","bid_price","bid_amount"]
[1752942517782,0.04276711,118010.0,118000.0,2.24955884]
[1752942518191,0.04276711,118010.0,118000.0,2.00839065]
[1752942518439,0.03429347,118010.0,118000.0,2.24955884]
[1752942519668,0.03429347,118010.0,118000.0,2.89732384]
[1752942520503,0.00887321,118010.0,118000.0,2.88291584]
[1752942520713,0.01734649,118010.0,118000.0,2.85749584]
[1752942520986,0.00887321,118010.0,118000.0,2.85749584]
[1752942521202,0.0004,118010.0,118000.0,2.85749584]
[1752942521871,0.00887328,118010.0,118000.0,2.85749584]
[1752942522410,0.0004,118010.0,118000.0,2.85749584]
[1752942522643,0.00887321,118010.0,118000.0,2.85749584]
[1752942522825,0.0004,118010.0,118000.0,2.87203669]
[1752942524463,0.0004,118010.0,118000.0,5.83650973]
[1752942524652,0.0004,118010.0,118000.0,5.88650973]
[1752942524939,9.78e-06,118010.0,118000.0,6.03650973]
[1752942525157,9.78e-06,118010.0,118000.0,6.0586537]
[1752942525376,0.2187626,118050.0,118040.0,0.55293856]
[1752942525611,0.05979237,118050.0,118040.0,1.01681703]
[1752942525865,0.0005496,118050.0,118040.0,1.06158823]
[1752942526087,0.01749049,118050.0,118040.0,1.88952404]
[1752942526308,0.00901994,118050.0,118040.0,1.88952404]
[1752942526510,0.01749056,118050.0,118040.0,1.73587123]
[1752942526794,0.01749042,118050.0,118040.0,1.73587123]
[1752942527030,0.01101994,118050.0,118040.0,1.49470304]
[1752942527297,0.0005496,118050.0,118040.0,1.49470304]
[1752942527512,0.00902001,118050.0,118040.0,1.73587123]
[1752942527766,0.0005496,118050.0,118040.0,1.73587123]
[1752942527997,0.0004,118060.0,118050.0,5.04699766]
[1752942528217,0.00089837,118060.0,118050.0,5.89160113]
[1752942528459,0.00089837,118060.0,118050.0,5.54686694]
[1752942528687,0.00089837,118060.0,118050.0,5.40856313]
[1752942529325,0.00089837,118060.0,118050.0,6.59703013]
[1752942529747,0.00089837,118060.0,118050.0,6.60703013]
[1752942530383,0.00089837,118060.0,118050.0,1.60703013]
[1752942530616,0.00089837,118060.0,118050.0,6.60703013]
[1752942530830,0.00089837,118060.0,118050.0,5.17827813]
[1752942531527,0.00089837,118060.0,118050.0,6.02537913]
[1752942531742,0.00089837,118060.0,118050.0,5.32825913]
[1752942532444,0.00089837,118060.0,118050.0,6.60803013]
[1752942534642,0.00886675,118100.0,118090.0,0.58020668]
[1752942534853,0.00054945,118100.0,118090.0,4.63397356]
[1752942535068,0.00054945,118100.0,118090.0,3.30201775]
[1752942535278,0.00054945,118100.0,118090.0,2.69367156]
[1752942535495,0.00901627,118100.0,118090.0,2.86026075]
[1752942535707,0.01748324,118100.0,118090.0,1.96190375]
[1752942535916,0.02595035,118100.0,118090.0,1.98691234]
[1752942536157,0.02695035,118100.0,118090.0,1.98691234]
[1752942536802,0.00154945,118100.0,118090.0,1.95819834]
[1752942537171,0.00254945,118100.0,118090.0,2.29691834]
[1752942537339,0.00254945,118100.0,118090.0,2.31251834]
[1752942537731,0.0110162,118100.0,118090.0,2.31251834]
[1752942537951,0.00254945,118100.0,118090.0,6.46046234]
[1752942538359,0.00254945,118100.0,118090.0,6.51046234]
[1752942538586,0.01512192,118120.0,118110.0,0.19473285]
[1752942538824,0.01512192,118120.0,118110.0,2.07972332]
[1752942539055,0.0320532,118120.0,118110.0,1.93848932]
[1752942539271,0.0320532,118120.0,118110.0,1.64936813]
[1752942539528,0.1929075,118120.0,118110.0,1.87360375]
[1752942539760,0.1862509,118120.0,118110.0,1.47048115]
[1752942539971,0.17778515,118120.0,118110.0,1.39682936]
[1752942540171,0.0084656,118120.0,118110.0,1.34800237]
[1752942540388,0.02733013,118130.0,118120.0,0.532326]
[1752942540587,0.02733013,118130.0,118120.0,1.84166147]
[1752942540814,0.0273297,118130.0,118120.0,1.8452909]
[1752942541058,0.01886474,118130.0,118120.0,1.86222189]
[1752942541187,0.0104,118130.0,118120.0,1.86222189]
[1752942541418,0.01886467,118130.0,118120.0,1.86222189]
[1752942541601,0.02732956,118130.0,118120.0,1.86222189]
[1752942541805,0.02932956,118130.0,118120.0,1.86222189]
[1752942542002,0.21556484,118130.0,118120.0,1.86222189]
[1752942542300,0.21556484,118130.0,118120.0,1.85375643]
[1752942542471,0.19663528,118130.0,118120.0,0.97217013]
[1752942542655,0.19763528,118130.0,118120.0,1.31542361]
[1752942542851,0.18917025,118130.0,118120.0,1.31542361]
[1752942543157,0.18917025,118130.0,118120.0,1.3238895]
[1752942543361,0.18917025,118130.0,118120.0,1.33235532]
[1752942543566,0.18917025,118130.0,118120.0,1.08272131]
[1752942543763,0.18917025,118130.0,118120.0,1.3238895]
[1752942544225,0.18917025,118130.0,118120.0,1.08272131]
[1752942544641,0.18917025,118130.0,118120.0,0.89647013]
[1752942545071,0.18917025,118130.0,118120.0,1.13763832]
[1752942545279,0.18917025,118130.0,118120.0,0.89647013]
[1752942545487,0.19113025,118130.0,118120.0,0.89647013]
[1752942545691,0.19113025,118130.0,118120.0,1.13763832]
[1752942546128,0.19113025,118130.0,118120.0,0.73806513]
[1752942546351,0.19113025,118130.0,118120.0,0.58275113]
[1752942546563,0.19113025,118130.0,118120.0,0.95230732]
[1752942548073,0.22263025,118130.0,118120.0,0.81869932]
[1752942548369,0.22263025,118130.0,118120.0,0.57753113]
[1752942548669,0.46610844,118130.0,118120.0,0.22303028]
[1752942548890,0.46610844,118130.0,118120.0,0.10005113]
[1752942549098,0.46610844,118130.0,118120.0,0.23757113]
[1752942549311,0.46510844,118130.0,118120.0,0.57757113]
[1752942549525,0.46510844,118130.0,118120.0,0.42551028]
[1752942549732,0.46510844,118130.0,118120.0,0.22303028]
[1752942549958,0.46340566,118130.0,118120.0,0.56303028]
[1752942550783,0.46440566,118130.0,118120.0,0.56303028]
[1752942551258,0.22323747,118130.0,118120.0,0.56303028]
[1752942551456,0.46440566,118130.0,118120.0,0.56303028]
[1752942552479,0.22323747,118130.0,118120.0,0.56303028]
[1752942553058,0.46440566,118130.0,118120.0,0.56303028]
[1752942556426,0.22323747,118130.0,118120.0,0.56303028]
[1752942557528,0.46440566,118130.0,118120.0,0.56303028]
[1752942558002,0.22323747,118130.0,118120.0,0.56303028]
[1752942558220,0.46440566,118130.0,118120.0,0.56303028]
[1752942559203,0.22323747,118130.0,118120.0,0.56303028]
[1752942559425,0.46440566,118130.0,118120.0,0.56303028]
[1752942560860,0.22323747,118130.0,118120.0,0.56303028]
[1752942561028,0.46440566,118130.0,118120.0,0.56303028]
[1752942561399,0.22323747,118130.0,118120.0,0.56303028]
[1752942561611,0.46440566,118130.0,118120.0,0.56303028]
[1752942563479,0.46440566,118130.0,118120.0,0.34]
[1752942563696,0.20958515,118120.0,118110.0,0.69321085]
[1752942563913,0.21155515,118120.0,118110.0,0.91560113]
[1752942565391,0.21155515,118120.0,118110.0,0.91572113]
[1752942574103,0.21155515,118120.0,118110.0,0.91884113]
[1752942578294,0.45272334,118120.0,118110.0,0.90118028]
[1752942578492,0.69620153,118120.0,118110.0,0.33867]
[1752942578930,0.45503334,118120.0,118110.0,0.33867]
[1752942580147,0.45603334,118120.0,118110.0,0.33867]
[1752942580555,0.21686515,118120.0,118110.0,0.47507]
[1752942580804,0.45803334,118120.0,118110.0,0.47507]
[1752942583643,0.69920153,118120.0,118110.0,0.47507]
[1752942583858,0.45803334,118120.0,118110.0,0.47507]
[1752942585860,0.45803334,118120.0,118110.0,0.33867]
[1752942586932,0.69920153,118120.0,118110.0,0.33867]
[1752942587150,0.45803334,118120.0,118110.0,0.33867]
[1752942588936,0.21686515,118120.0,118110.0,0.33867]
[1752942589166,0.45803334,118120.0,118110.0,0.33867]
[1752942589825,0.18078515,118120.0,118110.0,0.33867]
[1752942590046,0.18078515,118120.0,118110.0,0.34072]
[1752942590261,0.18078515,118120.0,118110.0,0.34394]
[1752942590474,0.42195334,118120.0,118110.0,0.34394]
[1752942591544,0.18276515,118120.0,118110.0,0.34394]
[1752942591756,0.42393334,118120.0,118110.0,0.34394]
[1752942594617,0.18276515,118120.0,118110.0,0.34394]
[1752942594833,0.18078515,118120.0,118110.0,0.34394]
[1752942595323,0.42195334,118120.0,118110.0,0.34394]
[1752942599320,0.42393334,118120.0,118110.0,0.34394]
[1752942600758,0.18276515,118120.0,118110.0,0.34394]
[1752942601221,0.18057024,118120.0,118110.0,0.34394]
[1752942601642,0.18255024,118120.0,118110.0,0.34394]
[1752942602056,0.42371843,118120.0,118110.0,0.34394]
[1752942602693,0.18255024,118120.0,118110.0,0.34394]
[1752942603522,0.42371843,118120.0,118110.0,0.34394]
[1752942604721,0.18255024,118120.0,118110.0,0.33867]
[1752942604943,0.42371843,118120.0,118110.0,0.33867]
[1752942605146,0.42371843,118120.0,118110.0,0.34394]
[1752942606562,0.41908177,118120.0,118110.0,0.34394]
[1752942606960,0.17791358,118120.0,118110.0,0.34394]
[1752942607189,0.17593358,118120.0,118110.0,0.34394]
[1752942608969,0.17792358,118120.0,118110.0,0.33867]
[1752942609157,0.17792358,118120.0,118110.0,0.34189]
[1752942609335,0.17792358,118120.0,118110.0,0.34394]
[1752942609743,0.17792358,118120.0,118110.0,0.34189]
[1752942610149,0.17792358,118120.0,118110.0,0.34394]
[1752942612153,0.17792358,118120.0,118110.0,0.33867]
[1752942613235,0.17792358,118120.0,118110.0,0.34189]
[1752942613563,0.21012358,118120.0,118110.0,0.33867]
[1752942614010,0.17792358,118120.0,118110.0,0.33867]
[1752942614236,0.17792358,118120.0,118110.0,0.34189]
[1752942615639,0.17792358,118120.0,118110.0,0.34394]
[1752942615861,0.17593358,118120.0,118110.0,0.34394]
[1752942620889,0.17791358,118120.0,118110.0,0.34394]
[1752942623013,0.35847487,118120.0,118110.0,0.34394]
[1752942623881,0.35486062,118120.0,118110.0,0.34394]
[1752942624521,0.36332644,118120.0,118110.0,0.34394]
[1752942625217,0.18276515,118120.0,118110.0,0.34394]
[1752942625390,0.36332644,118120.0,118110.0,0.34394]
[1752942629662,0.18276515,118120.0,118110.0,0.34394]
[1752942630051,0.36332644,118120.0,118110.0,0.34394]
[1752942631723,0.18276515,118120.0,118110.0,0.34394]
[1752942632041,0.18078515,118120.0,118110.0,0.34394]
[1752942632269,0.18078515,118120.0,118110.0,1.16227286]
[1752942632486,0.18078515,118120.0,118110.0,1.18853671]
[1752942632727,0.1892509,118120.0,118110.0,1.38087777]
[1752942632955,0.1892509,118120.0,118110.0,1.35461392]
[1752942633171,0.003,118120.0,118110.0,3.90773924]
[1752942633391,0.003,118120.0,118110.0,3.67505695]
[1752942634014,0.003,118120.0,118110.0,6.04559024]
[1752942634223,0.003,118120.0,118110.0,5.98608924]
[1752942634430,0.003,118120.0,118110.0,5.79345095]
[1752942634633,0.001,118120.0,118110.0,5.79345095]
[1752942634844,0.001,118120.0,118110.0,5.55363095]
[1752942635037,0.001,118120.0,118110.0,5.40087933]
[1752942635246,0.001,118120.0,118110.0,5.33173733]
[1752942635666,0.00846474,118130.0,118120.0,0.22641636]
[1752942635866,0.01692963,118130.0,118120.0,1.6915466]
[1752942636099,0.18623513,118130.0,118120.0,0.50497726]
[1752942636292,0.18623513,118130.0,118120.0,0.61524726]
[1752942637163,0.18623513,118130.0,118120.0,0.81287448]
[1752942637384,0.18623513,118130.0,118120.0,0.25750028]
[1752942637587,0.17777017,118130.0,118120.0,0.49809726]
[1752942637811,0.17777017,118130.0,118120.0,0.81284755]
[1752942639752,0.17777017,118130.0,118120.0,0.82131344]
[1752942639957,0.17777017,118130.0,118120.0,0.82977926]
[1752942640117,0.17777017,118130.0,118120.0,0.83824501]
[1752942640318,0.17777017,118130.0,118120.0,0.82131344]
[1752942640838,0.17777017,118130.0,118120.0,0.83890044]
[1752942641085,0.17777017,118130.0,118120.0,0.65264926]
[1752942641307,0.17777017,118130.0,118120.0,0.49809726]
[1752942641626,0.17777017,118130.0,118120.0,0.36293726]
[1752942641842,0.17777017,118130.0,118120.0,0.27196113]
[1752942642048,0.45310715,118130.0,118120.0,0.08551028]
[1752942642256,0.17778515,118120.0,118110.0,0.33867]
[1752942642462,0.17778515,118120.0,118110.0,0.56443028]
[1752942642709,0.17778515,118120.0,118110.0,0.81952811]
[1752942642920,0.17778515,118120.0,118110.0,0.85142811]
[1752942644202,0.16931933,118120.0,118110.0,0.85142811]
[1752942644401,0.17778515,118120.0,118110.0,0.85142811]
[1752942645344,0.17878515,118120.0,118110.0,0.85142811]
[1752942645729,0.17978515,118120.0,118110.0,0.61087113]
[1752942645877,0.17978515,118120.0,118110.0,0.85142811]
[1752942646743,0.17983494,118120.0,118110.0,0.85142811]
[1752942650255,0.17983494,118120.0,118110.0,0.47579113]
[1752942650466,0.18181494,118120.0,118110.0,0.57873113]
[1752942650759,0.21281494,118120.0,118110.0,0.33867]
[1752942650964,0.45567192,118120.0,118110.0,0.47347]
[1752942652092,0.59047192,118120.0,118110.0,0.47347]
[1752942652938,0.59047192,118120.0,118110.0,0.33867]
[1752942653144,0.59047192,118120.0,118110.0,0.47343]
[1752942654945,0.59047192,118120.0,118110.0,0.33867]
[1752942657327,0.20840021,118110.0,118100.0,0.13472]
[1752942657433,0.21038021,118110.0,118100.0,0.13472]
[1752942657874,0.17781526,118100.0,118090.0,0.13794]
[1752942658093,0.17781526,118100.0,118090.0,0.22546028]
[1752942659551,0.17781526,118100.0,118090.0,0.22746028]
[1752942660613,0.17781526,118100.0,118090.0,0.22846028]
[1752942663306,0.58732224,118100.0,118090.0,0.003]
[1752942663738,0.34676526,118100.0,118090.0,0.003]
[1752942664120,0.34676526,118100.0,118090.0,0.002]
[1752942665005,0.58962224,118100.0,118090.0,0.002]
[1752942665612,0.58962224,118100.0,118060.0,0.04492717]
[1752942665613,0.17786043,118070.0,118060.0,0.04492717]
[1752942665763,0.17786043,118070.0,118060.0,0.27170113]
[1752942665971,0.17786043,118070.0,118060.0,0.51225811]
[1752942666188,0.17786043,118070.0,118060.0,0.85225811]
[1752942666962,0.17791018,118070.0,118060.0,0.85425811]
[1752942667374,0.17791018,118070.0,118060.0,0.85525811]
[1752942670555,0.18637951,118070.0,118060.0,1.03313361]
[1752942670765,0.00851887,118070.0,118060.0,1.05007328]
[1752942670972,0.00851865,118070.0,118060.0,4.31703328]
[1752942671181,4.975e-05,118070.0,118060.0,6.31689411]
[1752942671402,0.17312119,118090.0,118080.0,0.55551754]
[1752942671611,0.17317097,118090.0,118080.0,1.72772063]
[1752942671822,0.17317097,118090.0,118080.0,0.82116513]
[1752942672031,0.16470293,118090.0,118080.0,1.1910988]
[1752942672650,0.16470293,118090.0,118080.0,1.02172211]
[1752942672860,0.16670293,118090.0,118080.0,1.02172211]
[1752942673662,0.16670293,118090.0,118080.0,1.19956749]
[1752942673892,0.16670293,118090.0,118080.0,1.2080361]
[1752942674960,0.16670293,118090.0,118080.0,1.1910988]
[1752942675183,0.16670293,118090.0,118080.0,1.19956763]
[1752942675397,0.16670293,118090.0,118080.0,1.20803632]
[1752942675606,0.15347637,118090.0,118080.0,1.20803632]
[1752942676529,0.15347637,118090.0,118080.0,1.21650493]
[1752942676945,0.15347637,118090.0,118080.0,1.22497347]
[1752942677904,0.00204978,118090.0,118080.0,1.47399878]
[1752942678122,0.01051739,118090.0,118080.0,1.47399878]
[1752942678524,0.018985,118090.0,118080.0,1.47399878]
[1752942678646,0.018985,118090.0,118080.0,1.2334418]
[1752942679067,0.016985,118090.0,118080.0,1.2334418]
[1752942679273,0.016985,118090.0,118080.0,1.47399878]
[1752942679749,4.978e-05,118090.0,118080.0,1.47399878]
[1752942679962,0.01698507,118090.0,118080.0,1.47399878]
[1752942680168,0.0254529,118090.0,118080.0,1.47399878]
[1752942680376,0.01698507,118090.0,118080.0,1.47399878]
[1752942680582,0.02545282,118090.0,118080.0,1.47399878]
[1752942681602,0.02545282,118090.0,118080.0,1.0892008]
[1752942682028,0.02545282,118090.0,118080.0,1.6890878]
[1752942682573,0.01698507,118090.0,118080.0,1.6890878]
[1752942683241,0.00851739,118090.0,118080.0,1.6890878]
[1752942683455,0.01698507,118090.0,118080.0,1.6890878]
[1752942683613,0.01698507,118090.0,118080.0,1.92964478]
[1752942684474,4.978e-05,118090.0,118080.0,1.92964478]
[1752942685810,4.978e-05,118090.0,118080.0,1.93064478]
[1752942686013,4.978e-05,118090.0,118080.0,1.93264478]
[1752942686680,0.00375695,118110.0,118100.0,0.19474933]
[1752942686812,0.16931933,118120.0,118110.0,0.52387452]
[1752942687014,0.16931933,118120.0,118110.0,0.98640178]
[1752942687201,0.16931933,118120.0,118110.0,0.98958178]
[1752942687630,0.16931933,118120.0,118110.0,0.82024811]
[1752942688504,0.16931933,118120.0,118110.0,1.00518178]
[1752942688714,0.17131933,118120.0,118110.0,0.83584811]
[1752942689120,0.17131933,118120.0,118110.0,0.82024811]
[1752942689616,0.17331933,118120.0,118110.0,1.02211493]
[1752942689827,0.17331933,118120.0,118110.0,1.01364839]
[1752942690365,0.17331933,118120.0,118110.0,1.00518178]
[1752942690823,0.17331933,118120.0,118110.0,0.77309148]
[1752942691048,0.17331933,118120.0,118110.0,0.82024811]
[1752942691588,0.17331933,118120.0,118110.0,0.99804846]
[1752942692536,0.17331933,118120.0,118110.0,0.57969113]
[1752942692778,0.17331933,118120.0,118110.0,0.82024811]
[1752942693372,0.17331933,118120.0,118110.0,0.99804846]
[1752942694084,0.17331933,118120.0,118110.0,0.82024811]
[1752942694554,0.17331933,118120.0,118110.0,0.83574811]
[1752942697856,0.17331933,118120.0,118110.0,0.82024811]
[1752942699487,0.17331933,118120.0,118110.0,0.83554811]
[1752942699985,0.02093164,118120.0,118110.0,1.04588117]
[1752942700216,0.02939717,118120.0,118110.0,1.05434735]
[1752942700406,0.02939645,118120.0,118110.0,1.05434735]
[1752942700772,0.02739645,118120.0,118110.0,1.05434735]
[1752942701658,0.01693085,118120.0,118110.0,1.05434735]
[1752942701861,0.02539653,118120.0,118110.0,1.05434735]
[1752942702065,0.02539653,118120.0,118110.0,2.84152935]
[1752942702273,0.19470024,118130.0,118120.0,1.74228942]
[1752942702495,0.19470024,118130.0,118120.0,2.12597668]
[1752942702706,0.01217459,118130.0,118120.0,2.13444214]
[1752942702911,0.02910458,118130.0,118120.0,2.13444214]
[1752942703781,0.20687475,118130.0,118120.0,2.13444214]
[1752942704224,0.03856975,118130.0,118120.0,2.13444214]
[1752942705936,0.03010458,118130.0,118120.0,2.13444214]
[1752942706202,0.02163948,118130.0,118120.0,2.13444214]
[1752942706909,0.0131743,118130.0,118120.0,2.13444214]
[1752942707112,0.02163919,118130.0,118120.0,2.13444214]
[1752942707471,0.20040929,118130.0,118120.0,2.04067715]
[1752942707668,0.19569973,118130.0,118120.0,1.46865015]
[1752942707878,0.170305,118130.0,118120.0,0.61155113]
[1752942708091,0.169305,118130.0,118120.0,0.81980811]
[1752942708298,0.169305,118130.0,118120.0,1.1711954]
[1752942708517,0.169305,118130.0,118120.0,1.17966122]
[1752942708742,0.169305,118130.0,118120.0,1.21299265]
[1752942708955,0.169305,118130.0,118120.0,1.20452697]
[1752942709564,0.169305,118130.0,118120.0,1.21299265]
[1752942709775,0.169305,118130.0,118120.0,1.20452697]
[1752942709989,0.169305,118130.0,118120.0,1.19606122]
[1752942710412,0.169305,118130.0,118120.0,1.1731354]
[1752942710632,0.169305,118130.0,118120.0,0.86980811]
[1752942711173,0.169305,118130.0,118120.0,0.62925113]
[1752942711376,0.169305,118130.0,118120.0,1.03916744]
[1752942711588,0.169305,118130.0,118120.0,1.1586554]
[1752942711812,0.169305,118130.0,118120.0,1.0639334]
[1752942712023,0.169305,118130.0,118120.0,1.1740354]
[1752942713287,0.169305,118130.0,118120.0,1.19096711]
[1752942714335,0.169305,118130.0,118120.0,1.20646711]
[1752942718284,0.169305,118130.0,118120.0,0.96591013]
[1752942718457,0.169305,118130.0,118120.0,1.20646711]
[1752942718677,0.169305,118130.0,118120.0,0.96591013]
[1752942719024,0.169305,118130.0,118120.0,1.1895354]
[1752942720267,0.169305,118130.0,118120.0,0.62929113]
[1752942720477,0.169305,118130.0,118120.0,0.86984811]
[1752942720680,0.17776982,118130.0,118120.0,1.36729944]
[1752942720890,0.17776982,118130.0,118120.0,1.37576533]
[1752942721565,0.17776982,118130.0,118120.0,1.38423115]
[1752942722481,0.169305,118130.0,118120.0,1.37576533]
[1752942722932,0.169305,118130.0,118120.0,1.13520835]
[1752942723157,0.169305,118130.0,118120.0,0.89495913]
[1752942723368,0.169305,118130.0,118120.0,0.73580811]
[1752942723589,0.169305,118130.0,118120.0,0.86960811]
[1752942723817,0.171285,118130.0,118120.0,0.86440811]
[1752942724034,0.171285,118130.0,118120.0,0.86952811]
[1752942724247,0.169305,118130.0,118120.0,0.86952811]
[1752942724909,0.169305,118130.0,118120.0,0.49517113]
[1752942725103,0.169305,118130.0,118120.0,0.86956811]
[1752942725299,0.169305,118130.0,118120.0,0.49517113]
[1752942725556,0.203685,118130.0,118120.0,0.62389113]
[1752942727337,0.203685,118130.0,118120.0,0.60935028]
[1752942734469,0.205985,118130.0,118120.0,0.05]
[1752942734675,0.44654198,118130.0,118120.0,0.05]
[1752942734906,0.1862823,118100.0,118090.0,0.24369698]
[1752942735112,0.1862823,118100.0,118090.0,0.47355121]
[1752942735291,0.1862823,118100.0,118090.0,0.97097906]
[1752942735522,0.1862823,118100.0,118090.0,0.96349426]
[1752942735732,0.1862823,118100.0,118090.0,0.97803511]
[1752942736620,0.1862823,118100.0,118090.0,0.91530859]
[1752942736823,0.17781526,118100.0,118090.0,1.15586557]
[1752942736984,0.16934801,118100.0,118090.0,0.98650442]
[1752942738776,0.12290201,118100.0,118090.0,0.98650442]
[1752942740623,0.12290201,118100.0,118090.0,0.74594744]
[1752942740969,0.12290201,118100.0,118090.0,0.98650442]
[1752942742395,0.12290201,118100.0,118090.0,0.97803511]
[1752942743406,0.12290201,118100.0,118090.0,0.61019113]
[1752942743614,0.12290201,118100.0,118090.0,0.85074811]
[1752942744646,0.12290201,118100.0,118090.0,0.83504811]
[1752942744849,0.12290201,118100.0,118090.0,0.81944811]
[1752942746162,0.12290201,118100.0,118090.0,0.83594811]
[1752942749244,0.12290201,118100.0,118090.0,0.84440829]
[1752942750224,0.12290201,118100.0,118090.0,0.60385131]
[1752942750425,0.12290201,118100.0,118090.0,0.84440829]
[1752942752046,0.12290201,118100.0,118090.0,0.86070829]
[1752942752305,0.12290201,118100.0,118090.0,0.86049312]
[1752942756254,0.12290201,118100.0,118090.0,0.84419312]
[1752942758340,0.12290201,118100.0,118090.0,0.60363614]
[1752942758555,0.12290201,118100.0,118090.0,0.84419312]
[1752942759538,0.10968201,118100.0,118090.0,0.60363614]
[1752942759739,0.10968201,118100.0,118090.0,0.84419312]
[1752942760612,0.10968201,118100.0,118090.0,1.01355547]
[1752942760832,0.10968201,118100.0,118090.0,1.02202351]
[1752942761048,0.10968201,118100.0,118090.0,1.03832351]
[1752942761837,0.10968201,118100.0,118090.0,1.04679141]
[1752942762968,0.16934412,118120.0,118110.0,0.54080766]
[1752942763189,0.18627583,118120.0,118110.0,1.04148131]
[1752942763408,0.18627583,118120.0,118110.0,1.61855931]
[1752942763875,0.18627583,118120.0,118110.0,1.43646865]
[1752942764085,0.18827583,118120.0,118110.0,1.68549181]
[1752942764927,0.19027583,118120.0,118110.0,1.66855931]
[1752942765134,0.18827583,118120.0,118110.0,1.66855931]
[1752942765350,0.18627583,118120.0,118110.0,1.66855931]
[1752942765544,0.18727583,118120.0,118110.0,1.03138548]
[1752942765788,0.17881008,118120.0,118110.0,1.23484246]
[1752942766286,0.17881008,118120.0,118110.0,1.24330907]
[1752942766740,0.17981008,118120.0,118110.0,1.24330907]
[1752942766954,0.17981008,118120.0,118110.0,1.25177561]
[1752942767165,0.17981008,118120.0,118110.0,1.26024207]
[1752942767608,0.17981008,118120.0,118110.0,1.26870846]
[1752942767870,0.17981008,118120.0,118110.0,1.28490846]
[1752942768614,0.17981008,118120.0,118110.0,1.27644207]
[1752942768816,0.17981008,118120.0,118110.0,0.99383148]
[1752942769016,0.17981008,118120.0,118110.0,1.21818846]
[1752942769485,0.17981008,118120.0,118110.0,1.23438846]
[1752942769699,0.17134412,118120.0,118110.0,1.05658811]
[1752942770129,0.17134412,118120.0,118110.0,0.81603113]
[1752942770570,0.17134412,118120.0,118110.0,1.22592178]
[1752942770749,0.17134412,118120.0,118110.0,1.23438839]
[1752942771362,0.17134412,118120.0,118110.0,1.04038811]
[1752942772117,0.17134412,118120.0,118110.0,0.88562811]
[1752942772874,0.17330412,118120.0,118110.0,0.49005113]
[1752942773088,0.20420412,118120.0,118110.0,0.60867028]
[1752942774018,0.17330412,118120.0,118110.0,0.81584811]
[1752942774232,0.17134412,118120.0,118110.0,0.81902811]
[1752942778157,0.17330412,118120.0,118110.0,0.81902811]
[1752942780056,0.17134412,118120.0,118110.0,0.81902811]
[1752942784986,0.17134412,118120.0,118110.0,0.57847113]
[1752942785220,0.17134412,118120.0,118110.0,0.75897331]
[1752942791072,0.17330412,118120.0,118110.0,0.75897331]
[1752942791517,0.17330412,118120.0,118110.0,0.80897331]
[1752942792242,0.17330412,118120.0,118110.0,0.75897331]
[1752942792453,0.20450412,118120.0,118110.0,0.34]
[1752942792669,0.3875263,118120.0,118110.0,0.47304]
[1752942792875,0.20702412,118120.0,118110.0,0.47304]
[1752942796408,0.1862823,118100.0,118090.0,0.04892085]
[1752942796618,0.2194423,118100.0,118090.0,0.43077028]
[1752942796845,0.1882423,118100.0,118090.0,0.74431246]
[1752942797065,0.1862823,118100.0,118090.0,0.74431246]
[1752942797732,0.1862823,118100.0,118090.0,0.74731246]
[1752942799151,0.1862823,118100.0,118090.0,0.80756134]
[1752942799777,0.1862823,118100.0,118090.0,0.56681028]
[1752942800003,0.1862823,118100.0,118090.0,0.80756134]
[1752942802873,0.1862823,118100.0,118090.0,0.82210219]
[1752942803064,0.1862823,118100.0,118090.0,1.02276454]
[1752942803282,0.17781526,118100.0,118090.0,0.85340219]
[1752942803691,0.17781526,118100.0,118090.0,0.61265113]
[1752942803898,0.17781526,118100.0,118090.0,0.85340219]
[1752942809281,0.17781526,118100.0,118090.0,0.61265113]
[1752942809513,0.17781526,118100.0,118090.0,0.85340219]
[1752942811192,0.17781526,118100.0,118090.0,0.83840219]
[1752942812231,0.17979526,118100.0,118090.0,0.44831113]
[1752942812438,0.21189526,118100.0,118090.0,0.81684219]
[1752942812665,0.21440526,118100.0,118090.0,0.343]
[1752942812877,0.45515632,118100.0,118090.0,0.13604]
[1752942813085,0.45515632,118100.0,118090.0,0.002]
[1752942813296,0.45515632,118100.0,118090.0,0.13504]
[1752942813513,0.45515632,118100.0,118090.0,0.13304]
[1752942813723,0.45615632,118100.0,118090.0,0.13304]
[1752942813943,0.21540526,118100.0,118090.0,0.13304]
[1752942815405,0.21740526,118100.0,118090.0,0.13304]
[1752942816674,0.21940526,118100.0,118090.0,0.13304]
[1752942817103,0.18631385,118080.0,118070.0,0.38823085]
[1752942817280,0.18631385,118080.0,118070.0,0.95873058]
[1752942817913,0.18631385,118080.0,118070.0,0.96192058]
[1752942818581,0.18631385,118080.0,118070.0,1.20267164]
[1752942819625,0.18631385,118080.0,118070.0,1.18163864]
[1752942821954,0.18631385,118080.0,118070.0,0.94088758]
[1752942822291,0.18631385,118080.0,118070.0,1.18163864]
[1752942822705,0.18631385,118080.0,118070.0,0.84978164]
[1752942826916,0.1815551,118080.0,118070.0,0.84978164]
[1752942835029,0.1815551,118080.0,118070.0,1.01917267]
[1752942835277,0.1815551,118080.0,118070.0,1.02764222]
[1752942835475,0.1815551,118080.0,118070.0,0.78689116]
[1752942835680,0.1815551,118080.0,118070.0,1.02764222]
[1752942835900,0.17784538,118080.0,118070.0,1.02764222]
[1752942836164,0.16937669,118080.0,118070.0,1.02764222]
[1752942837048,0.16937669,118080.0,118070.0,0.96749695]
[1752942837854,0.16937669,118080.0,118070.0,0.97596643]
[1752942839056,0.16937669,118080.0,118070.0,0.96749695]
[1752942839908,0.16937669,118080.0,118070.0,0.78689116]
[1752942840119,0.16937669,118080.0,118070.0,0.96749695]
[1752942842051,0.16937669,118080.0,118070.0,0.78689116]
[1752942842259,0.16937669,118080.0,118070.0,0.96749695]
[1752942842782,0.16937669,118080.0,118070.0,0.60903058]
[1752942843004,0.16937669,118080.0,118070.0,0.77453637]
[1752942844722,0.16937669,118080.0,118070.0,0.77449637]
[1752942844935,0.16937669,118080.0,118070.0,0.75909637]
[1752942845173,0.16937669,118080.0,118070.0,0.62609637]
[1752942845386,0.16501669,118080.0,118070.0,0.75909637]
[1752942845797,0.19806669,118080.0,118070.0,0.44020058]
[1752942846010,0.20058669,118080.0,118070.0,0.42565973]
[1752942846270,0.20058669,118080.0,118070.0,0.55865973]
[1752942846711,0.19806669,118080.0,118070.0,0.55865973]
[1752942847118,0.38119248,118080.0,118070.0,0.08565973]
[1752942847335,0.20058669,118080.0,118070.0,0.21865973]
[1752942850415,0.19806669,118080.0,118070.0,0.21865973]
[1752942851231,0.20058669,118080.0,118070.0,0.21865973]
[1752942851874,0.38119248,118080.0,118070.0,0.13314945]
[1752942852085,0.38119248,118080.0,118070.0,0.00014945]
[1752942852308,0.56179827,118080.0,118070.0,0.00014945]
[1752942853525,0.64830855,118080.0,118070.0,1e-08]
[1752942853794,0.65030855,118080.0,118070.0,1e-08]
[1752942854052,0.64730855,118080.0,118070.0,1e-08]
[1752942854302,0.64930855,118080.0,118070.0,1e-08]